Cogmind - Beta 10.2 @@@ ROGUE MODE // 2021.10.22 @ 18:13:37 Player: Wakanaka Result: Self-destructed Performance ------------- Evolutions (3) 1500 Regions Visited (6) 1200 Robots Destroyed (47) 235 Value Destroyed (1126) 1126 Prototype IDs (2) 40 Alien Tech Used (0) 0 Bonus (-149) -149 TOTAL SCORE: 3952 Bonus ------- Follower Combat Kills 70 Friendly Fire -219 Cogmind --------- Core Integrity 2/700 Matter 500/500 Energy 100/100 System Corruption 3% Temperature Cool (0) Movement Core (650) Ox12 Location -7/Factory Parts ------- > --- POWER (1) -------- (None) > --- PROPULSION (2) --- (None) > --- UTILITY (8) ------ High-capacity Storage Unit High-capacity Matter Pod Seismic Analyzer Terrain Scan Processor Advanced Targeting Computer Target Analyzer Power Shielding > --- WEAPON (2) ------- (None) > --- INVENTORY (12) --- Improved Ion Engine Improved Heat Sink Enhanced Optical Array Target Analyzer Remote Datajack Peak State ------------ > --- POWER ------------ Improved Ion Engine > --- PROPULSION ------- Armored Wheel Armored Wheel > --- UTILITY ---------- High-capacity Storage Unit Improved Terrain Scanner Seismic Analyzer Terrain Scan Processor Phase Shifter Core Shielding Power Shielding Hardlight Generator > --- WEAPON ----------- Arc Projector Arc Projector > --- INVENTORY -------- Light Nuclear Core Light Nuclear Core Armored Wheel High-capacity Matter Pod Improved ECM Suite Propulsion Shielding Light Armor Plating Arc Projector Heavy Laser Gatling Laser Gauss Rifle Rocket Launcher [Rating: 33] Favorites ----------- Power Improved Ion Engine Engine Improved Ion Engine Power Core Light Nuclear Core Propulsion Wheel Treads Light Treads Wheel Wheel Flight Unit Flight Unit Utility High-capacity Storage Unit Device Improved Sensor Array Storage High-capacity Storage Unit Processor Terrain Scan Processor Protection Power Shielding Weapon EM Pulse Gun Energy Gun EM Pulse Gun Ballistic Gun Light Assault Rifle Ballistic Cannon Light Cannon Impact Weapon Maul Slashing Weapon Makeshift Sword Build | -11 -10 -10 -10 -9 -8 -7 ------- Run | Scr Mat Min Exi Min Mat Fac Slots Evolved 6 | . . . . . 4 2 Power . | . . . . . . . Propulsion . | . . . . . . . Utility 6 | . . . . . 4 2 Weapon . | . . . . . . . Parts Attached 76 | 7 5 2 1 6 26 29 Power 8 | 2 1 . . 1 2 2 Engine 6 | 2 1 . . 1 2 . Core 2 | . . . . . . 2 Reactor . | . . . . . . . Propulsion 15 | 2 1 . . 2 8 2 Treads 2 | . . . . . 2 . Leg . | . . . . . . . Wheel 12 | 2 1 . . 2 5 2 Hover . | . . . . . . . Flight 1 | . . . . . 1 . Utility 30 | 2 1 2 . 2 9 14 Device 13 | 1 . 1 . 2 4 5 Storage 5 | 1 1 1 . . . 2 Processor 5 | . . . . . 3 2 Hackware . | . . . . . . . Protection 7 | . . . . . 2 5 Artifact . | . . . . . . . Weapon 23 | 1 2 . 1 1 7 11 Energy Gun 14 | 1 . . 1 . 5 7 Energy Cannon . | . . . . . . . Ballistic Gun 6 | . 1 . . . 1 4 Ballistic Cannon 1 | . . . . 1 . . Launcher . | . . . . . . . Special Weapon . | . . . . . . . Impact Weapon 1 | . 1 . . . . . Slashing Weapon 1 | . . . . . 1 . Piercing Weapon . | . . . . . . . Special Melee Weapon . | . . . . . . . Unidentified Prototypes . | . . . . . . . Parts Lost 39 | . . 1 . 2 11 25 Power 4 | . . . . . 2 2 Propulsion 9 | . . 1 . 1 3 4 Utility 9 | . . . . . 1 8 Weapon 17 | . . . . 1 5 11 Highest Loss Streak 11 | . . 1 . 2 11 7 Average Slot Usage (%) 92 | . 97 91 84 87 95 95 Engine 10 | . 13 14 14 14 8 4 Wheel 16 | . 28 20 14 16 14 14 Device 13 | . 14 14 14 14 19 9 Storage 11 | . 14 14 14 14 9 9 Processor 8 | . . . . . 20 19 Protection 6 | . . . . . 5 19 Energy Gun 14 | . 14 14 19 24 10 10 Ballistic Gun 5 | . 9 14 7 . . 3 Naked Turns . | . . . . . . . Heaviest Build 58 | 12 19 43 44 45 50 58 Greatest Support 40 | 26 26 20 10 20 40 28 Greatest Overweight (x) 15 | . . 4 4 4 15 12 Average Overweight (x) 2 | . . 2 4 3 2 1 Largest Inventory Capacity 12 | 6 8 12 12 12 12 12 Average Capacity 11 | 5 6 11 12 12 12 12 Most Carried 12 | 5 7 10 12 12 12 12 Average Carried 9 | 2 5 9 10 11 9 9 Final Capacity 12 | 6 8 12 12 12 12 12 Final Carried 12 | 4 7 10 12 12 12 5 Class Distribution -------------------- 59% | Mutant 35% | Scavenger-Mutant 5% | Scavenger-Skirmisher Dominant Class ---------------- Mutant | -10/Materials Mutant | -10/Mines Mutant | -10/Exiles Mutant | -9/Mines Scavenger-Mutant | -8/Materials Scavenger-Mutant | -7/Factory Resources | -11 -10 -10 -10 -9 -8 -7 ----------- Run | Scr Mat Min Exi Min Mat Fac Matter Collected 1141 | 242 85 35 . 78 259 442 Remotely . | . . . . . . . Salvage Created 1758 | 96 107 145 17 176 399 818 Parts 121 | 7 9 11 . 12 39 43 Haulers Intercepted 1 | . 1 . . . . . Recyclers Shooed 1 | . . . . . 1 . Parts Field Recycled . | . . . . . . . Retrieved Matter . | . . . . . . . Parts Self-Destructed . | . . . . . . . Prevented . | . . . . . . . Kills | -11 -10 -10 -10 -9 -8 -7 ------- Run | Scr Mat Min Exi Min Mat Fac Combat Hostiles Destroyed 31 | . . 5 . 5 8 13 Melee 4 | . . . . . 4 . Guns 22 | . . 5 . 4 2 11 Cannons 2 | . . . . . 2 . AOE 1 | . . . . 1 . . Classes Destroyed 15 | 2 3 3 . 3 2 2 Worker 5 | . . 1 . . 3 1 Builder 1 | . . . . . . 1 Tunneler 1 | 1 . . . . . . Hauler 1 | . 1 . . . . . Recycler 3 | 1 . . . . 1 1 Mechanic 1 | . 1 . . . . . Operator 1 | . . . . . 1 . Watcher 3 | . 1 . . . 1 1 Swarmer 14 | . . 4 . 2 5 3 Grunt 8 | . . 1 . 1 . 6 Brawler 1 | . . . . 1 . . Sentry 3 | . . . . . 2 1 Hunter 2 | . . . . . 1 1 Programmer 2 | . . . . . . 2 Assembled 1 | . . . . 1 . . Guerrilla 1 | . . . . 1 . . Best Kill Streak 12 | 1 1 4 . 2 12 4 Combat Bots Only 5 | . . 3 . 2 5 3 Max Kills in Single Turn 2 | 1 1 1 . 2 1 2 Gunslinging 1 | . . . . 1 . . Exploded 1 | . . . . 1 . . Melee 1 | . . . . . 1 . Uniques/NPCs Destroyed . | . . . . . . . Combat | -11 -10 -10 -10 -9 -8 -7 -------- Run | Scr Mat Min Exi Min Mat Fac Damage Taken 4154 | . . 209 . 154 1111 2680 Core 1158 | . . 49 . 53 358 698 Absorbed by Shields 69 | . . . . . . 69 Core Remaining (%) 64 | 100 . . . 59 34 . Volleys Fired 163 | 10 12 19 1 12 31 78 Largest 2 | 1 2 2 1 2 2 2 Hottest 135 | 40 60 60 40 90 110 135 Shots Fired 271 | 10 19 38 1 22 47 134 Gun 254 | 10 19 38 1 20 32 134 Cannon 17 | . . . . 2 15 . Launcher . | . . . . . . . Special . | . . . . . . . Kinetic 88 | . 7 19 . 2 17 43 Thermal 64 | . . . . 12 17 35 Explosive . | . . . . . . . Electromagnetic 119 | 10 12 19 1 8 13 56 Robot Hit Streak 11 | 2 4 8 5 7 9 11 Robot Miss Streak 4 | 2 2 3 . 3 3 4 Penetration Max . | . . . . . . . Secondary Targets 6 | . . . . 2 . 4 Max Gunslinging Chain 1 | . . . . 1 . 1 Shots Hit Robots 188 | 5 10 27 1 12 38 95 Core Hits 83 | 3 5 10 1 10 17 37 Critical Hits . | . . . . . . . Critical Kills . | . . . . . . . Critical Parts Destroyed . | . . . . . . . Melee Attacks 9 | . . . . . 9 . Impact . | . . . . . . . Slashing 9 | . . . . . 9 . Piercing . | . . . . . . . Sneak Attacks 1 | . . . . . 1 . Combat Hostiles . | . . . . . . . Follow-up Attacks . | . . . . . . . Damage Inflicted 3217 | 79 158 297 10 300 878 1495 Guns 2436 | 79 118 297 10 196 301 1435 Cannons 208 | . . . . 14 194 . Explosions 292 | . 40 . . 90 102 60 Melee 281 | . . . . . 281 . Ramming . | . . . . . . . Kinetic 830 | . 7 103 . 14 207 499 Thermal 1050 | . 40 . . 227 301 482 Explosive . | . . . . . . . Electromagnetic 1056 | 79 111 194 10 59 89 514 Impact . | . . . . . . . Slashing 281 | . . . . . 281 . Piercing . | . . . . . . . Highest Corruption 3 | . . . . . . 3 Average Corruption 1 | . . . . . . 1 Corruption Purged . | . . . . . . . Effects 5 | . . . . . . 5 Message Errors 2 | . . . . . . 2 Matter Fused 2 | . . . . . . 2 Data Loss (minor) 1 | . . . . . . 1 Overload Shots . | . . . . . . . Overflow Damage 15 | . . . . . 15 . Projectiles . | . . . . . . . Explosions 15 | . . . . . 15 . Melee . | . . . . . . . Knockbacks . | . . . . . . . Impact . | . . . . . . . Kinetic . | . . . . . . . Secondary . | . . . . . . . Self-Inflicted Damage 73 | . . . . 36 . 37 Shots 2 | . . . . 1 . 1 Rammed . | . . . . . . . Targets Rammed . | . . . . . . . Kicked . | . . . . . . . Crushed . | . . . . . . . Highest Temperature 338 | . 25 87 2 126 132 338 Average Temperature 72 | . 9 30 1 39 24 116 Received Heat Transfer 473 | . . 21 . 35 117 300 Effects 1 | . . . . . . 1 Matter Decay 1 | . . . . . . 1 Siege Activations . | . . . . . . . Robots Corrupted 2 | . . . . . . 2 Combat Hostiles 2 | . . . . . . 2 Parts Fried 4 | 1 . . . . . 3 Impact Corruptions . | . . . . . . . Robots Melted . | . . . . . . . Combat Hostiles . | . . . . . . . Parts Melted 4 | . . . . 1 1 2 Heat Transferred 1995 | . 50 . . 496 581 868 Parts Sabotaged . | . . . . . . . Parts Stolen . | . . . . . . . Parts Stripped . | . . . . . . . Power Chain Reactions 4 | . 1 . . 1 1 1 Missiles Intercepted . | . . . . . . . Alert | -11 -10 -10 -10 -9 -8 -7 ------- Run | Scr Mat Min Exi Min Mat Fac Peak Influence 188 | 10 70 114 . 188 150 161 Initial 27 | . 6 27 . . . 14 Average 45 | 3 39 43 . 45 28 60 Maximum Alert Level . | . . . . . . . Low Security (%) 100 | 100 100 100 . 100 100 100 Level 1 . | . . . . . . . Level 2 . | . . . . . . . Level 3 . | . . . . . . . Level 4 . | . . . . . . . Level 5 . | . . . . . . . High Security . | . . . . . . . Max Security . | . . . . . . . Squads Dispatched 4 | . . . . . . 4 Investigation 1 | . . . . . . 1 Extermination 2 | . . . . . . 2 Reinforcement 1 | . . . . . . 1 Assault . | . . . . . . . Garrison . | . . . . . . . Intercept . | . . . . . . . Construction Impeded . | . . . . . . . Haulers Reinforced . | . . . . . . . Stealth | -11 -10 -10 -10 -9 -8 -7 --------- Run | Scr Mat Min Exi Min Mat Fac Distress Signals 2 | . . . . . 1 1 Communications Jammed . | . . . . . . . Distress Signals . | . . . . . . . Times Spotted 72 | . 5 8 . 11 14 34 Peak Tracking Total 5 | . 1 3 . 4 5 5 Tactical Retreats 6 | . . . . . . 6 Traps | -11 -10 -10 -10 -9 -8 -7 ------- Run | Scr Mat Min Exi Min Mat Fac Traps Triggered . | . . . . . . . Indirectly . | . . . . . . . Trap Hack Attempts . | . . . . . . . Triggered . | . . . . . . . Disarmed . | . . . . . . . Reprogrammed . | . . . . . . . Reused . | . . . . . . . Traps Extracted . | . . . . . . . Installed . | . . . . . . . Triggered . | . . . . . . . Machines | -11 -10 -10 -10 -9 -8 -7 ---------- Run | Scr Mat Min Exi Min Mat Fac Machines Disabled 3 | . . . . 1 . 2 Max in Single Turn 1 | . . . . . . 1 Machines Sabotaged . | . . . . . . . Garrisons Compromised . | . . . . . . . Overloaded Fab Kills . | . . . . . . . Fab Network Shutdowns . | . . . . . . . Hacking | -11 -10 -10 -10 -9 -8 -7 --------- Run | Scr Mat Min Exi Min Mat Fac Machines Accessed 8 | . 2 . 2 1 2 1 Terminals 4 | . 2 . . 1 . 1 Fabricators . | . . . . . . . Repair Stations . | . . . . . . . Recycling Units 1 | . . . . . 1 . Scanalyzers 1 | . . . . . 1 . Garrison Access . | . . . . . . . Total Hacks 18 | . 6 . 2 1 6 3 Successful 14 | . 3 . 2 1 6 2 Failed 4 | . 3 . . . . 1 Catastrophic . | . . . . . . . Database Lockouts . | . . . . . . . Manual 2 | . . . 2 . . . Terminals 10 | . 6 . . 1 . 3 Fabricators . | . . . . . . . Repair Stations . | . . . . . . . Recycling Units 1 | . . . . . 1 . Scanalyzers 5 | . . . . . 5 . Garrison Access . | . . . . . . . Terminal Hacks 8 | . 3 . 2 1 . 2 Record 4 | . 1 . 2 . . 1 Prototype ID Bank 1 | . . . . . . 1 Locate Traps 1 | . 1 . . . . . Zone Layout 2 | . 1 . . 1 . . Fabricator Hacks . | . . . . . . . Repair Station Hacks . | . . . . . . . Recycling Unit Hacks 1 | . . . . . 1 . Report Inventory 1 | . . . . . 1 . Scanalyzer 5 | . . . . . 5 . Insert Component 2 | . . . . . 2 . Analyze 3 | . . . . . 3 . Garrison Access Hacks . | . . . . . . . Unauthorized Hacks . | . . . . . . . Terminals . | . . . . . . . Fabricators . | . . . . . . . Repair Stations . | . . . . . . . Recycling Units . | . . . . . . . Scanalyzers . | . . . . . . . Garrison Access . | . . . . . . . Data Cores Recovered 1 | . . . . . 1 . Used . | . . . . . . . Hacking Detections 3 | . 1 . . . 1 1 Full Trace Events 2 | . 1 . . . . 1 Feedback Events . | . . . . . . . Feedback Blocked . | . . . . . . . Robot Schematics Acquired . | . . . . . . . Robots Built . | . . . . . . . Matter . | . . . . . . . Time . | . . . . . . . Total Robot Build Rating . | . . . . . . . Part Schematics Acquired 2 | . . . . . 2 . Parts Built . | . . . . . . . Matter . | . . . . . . . Time . | . . . . . . . Total Part Build Rating . | . . . . . . . Parts Repaired . | . . . . . . . Time . | . . . . . . . Parts Recycled . | . . . . . . . Recycled Matter . | . . . . . . . Retrieved Matter . | . . . . . . . Retrieved Components . | . . . . . . . Parts Scanalyzed 2 | . . . . . 2 . Part Schematics Acquired 2 | . . . . . 2 . Parts Damaged . | . . . . . . . Bothacking | -11 -10 -10 -10 -9 -8 -7 ------------ Run | Scr Mat Min Exi Min Mat Fac Used RIF Installer . | . . . . . . . Robots Hacked . | . . . . . . . Non-combat . | . . . . . . . Combat . | . . . . . . . Robot Hacks Applied . | . . . . . . . Relay Couplers Released . | . . . . . . . Robots Rewired . | . . . . . . . Allies Hacked . | . . . . . . . Hacks Repelled . | . . . . . . . Allies | -11 -10 -10 -10 -9 -8 -7 -------- Run | Scr Mat Min Exi Min Mat Fac Total Allies 5 | . . 3 . 2 . . Largest Group 3 | . . 3 1 3 2 . Highest-Rated Group 65 | . . 40 16 65 47 . Highest-Rated Ally 31 | . . 16 16 31 31 . Total Orders . | . . . . . . . Ally Attacks 29 | . . 8 . 14 7 . Total Damage 398 | . . 78 . 181 139 . Kills 7 | . . 2 . 3 2 . Allies Corrupted . | . . . . . . . Allies Melted . | . . . . . . . Intel | -11 -10 -10 -10 -9 -8 -7 ------- Run | Scr Mat Min Exi Min Mat Fac Robot Analysis Total . | . . . . . . . Derelict Logs Recovered 1 | . . 1 . . . . Drone Launches . | . . . . . . . Drone Recoveries . | . . . . . . . Exploration | -11 -10 -10 -10 -9 -8 -7 ------------- Run | Scr Mat Min Exi Min Mat Fac Turns Passed 4288 | 77 205 1009 651 455 642 1249 Spaces Moved 2691 | 47 176 707 536 275 221 729 Core 9 | 6 . . . . 2 1 Treads 8 | . . . . . 8 . Legs . | . . . . . . . Wheels 2672 | 41 176 707 536 275 209 728 Hover . | . . . . . . . Flight 2 | . . . . . 2 . Fastest Speed 50 | 50 80 80 120 100 100 100 Average Speed 111 | 85 81 109 120 114 119 110 Slowest Speed 920 | 100 90 120 120 120 920 650 Overloaded Moves . | . . . . . . . Propulsion Burnouts . | . . . . . . . Robots Hopped . | . . . . . . . Cave-ins Triggered . | . . . . . . . Exploration Rate (%) 47 | 5 30 98 90 76 17 16 Regions Visited 6 Branch Regions 3 Pre-discovered Areas 2 | . . 1 . 1 . . Known Exits Taken . | . . . . . . . Unknown Exits Taken 6 | 1 1 1 1 1 1 . Scrap Searched 2 | . . 1 . 1 . . Spaces Dug . | . . . . . . . Terrain Destroyed 12 | . 3 . . 2 4 3 Melee . | . . . . . . . Projectile . | . . . . . . . AOE 12 | . 3 . . 2 4 3 Terrain Rammed . | . . . . . . . Walls Destroyed . | . . . . . . . Machines Disabled . | . . . . . . . Actions | -11 -10 -10 -10 -9 -8 -7 --------- Run | Scr Mat Min Exi Min Mat Fac Total 3709 | 73 221 906 543 390 544 1032 Wait 690 | . 14 175 . 95 230 176 Move 2685 | 46 175 706 535 274 220 729 Hop . | . . . . . . . Pick Up 63 | 10 9 3 3 2 19 17 Fast Attach 4 | . . . . 2 2 . Attach 47 | 6 3 . 1 1 15 21 Detach . | . . . . . . . Swap 25 | 1 2 2 . 3 9 8 Drop 21 | . 6 1 1 1 9 3 Fire 163 | 10 12 19 1 12 31 78 Melee 9 | . . . . . 9 . Ram . | . . . . . . . Kick . | . . . . . . . Crush . | . . . . . . . Escape Stasis . | . . . . . . . Rewire 2 | . . . 2 . . . Trap . | . . . . . . . Miscellaneous . | . . . . . . . Route ------- -11/Scrapyard -10/Materials -10/Mines (discovered 3 exits: [*Mat x2] / *Exi) -10/Exiles -9/Mines -8/Materials -7/Factory History --------- Turn | Location | Event 23 | -11/Scrapyard | Discovered new exit (range 15) 78 | -11/Scrapyard | Entered Materials 266 | -10/Materials | Discovered new exit (range 13) 283 | -10/Materials | Entered Mines 314 | -10/Mines | Build established: Mutant 328 | -10/Mines | Received a Rocket Launcher from a helpful Derelict 411 | -10/Mines | Deemed a non-threat by the Exiles lab entrance 411 | -10/Mines | Discovered new exit (range 5) 682 | -10/Mines | Learned location of Zion (-6) 947 | -10/Mines | Assisted by bots powering up and referring to "LRC-V3" 1015 | -10/Mines | Discovered new exit (range 6) 1066 | -10/Mines | Discovered new exit (range 9) 1292 | -10/Mines | Entered Exiles 1292 | -10/Exiles | Found Exiles lab destroyed 1292 | -10/Exiles | Accompanied by 1 ally 1932 | -10/Exiles | Discovered new exit (range 10) 1943 | -10/Exiles | Entered Mines 1943 | -9/Mines | Accompanied by 1 ally 1944 | -9/Mines | Learned location of Storage (-8) 2253 | -9/Mines | Assembled infested the area 2258 | -9/Mines | Assisted by a Guerilla fighting off Assembled 2384 | -9/Mines | Discovered new exit (range 8) 2398 | -9/Mines | Entered Materials 2398 | -8/Materials | Accompanied by 2 allies 2398 | -8/Materials | Evolved 4 slots: Utility x4 2403 | -8/Materials | Led the pair of lost Derelicts to an unsafe place 2707 | -8/Materials | Core integrity fell below 50% 2747 | -8/Materials | Lost 11 parts (2p3n1u5w) 2918 | -8/Materials | Build established: Scavenger-Mutant 2994 | -8/Materials | Discovered new exit (range 16) 3040 | -8/Materials | Entered Factory 3040 | -7/Factory | Evolved 2 slots: Utility x2 3600 | -7/Factory | Lost 3 parts (1u2w) 3967 | -7/Factory | Lost 5 parts (1p3u1w) 4186 | -7/Factory | Lost 7 parts (1n1u5w) 4254 | -7/Factory | Core integrity fell below 50% 4279 | -7/Factory | Core integrity fell below 20% 4289 | -7/Factory | Self-destructed Last Messages --------------- 04188_ Acquired 78 matter. 04191_ Acquired Target Analyzer. 04194_ Acquired Com. Wheel. 04199_ Acquired 10 matter. 04210_ MDMOPQB4 AHJ&QWEX#,LM,7FYS8Q6TWWOIG 04225_ K-01 Serf collects debris. 04232_ System corrupted: Matter fused (-10). 04239_ Pressure Siphon disabled. 04241_ Arm. Wheel destroyed. 04241_ Lgt. Nuclear Core destroyed. 04244_ Shock Rifle destroyed. 04254_ Gauss Rifle destroyed. 04256_ System corrupted: Component data lost. 04260_ Acquired 12 matter. 04267_ K-01 Serf collects debris. 04267_ Core Shielding destroyed. 04272_ Acquired 12 matter. 04273_ MH%,S5K9 AQJ>XXRO0,DYHF 04277_ Arm. Wheel destroyed. 04282_ Com. Wheel destroyed. Map ----- +----------------------------------------------------+ | ??????????????????????????????????????????# !== | | ?????????????????????????????##################+## | | ?????????????????????????????# % | | ?????????????????????????????# | | ?????????????????????????????# | | ?????????????????????????????# | | ?????????????????????????????# | | ?????????????????????????????# ############+## | | ????????????######+########### #??????# | | ??????????? #??????# | | ??????????? ######## """ "" | | ?????????? + """ "" | | ?????????? ######## """ S | | ?????????? #??????# "" | | ?????????????????#+###### ######+#+######?# "" | | ????????????????????????# ## #?# ! | | ????????????????????????# ## #?######## | | ??????????? ??????????# ## #????????? | | ????????? ??????????# ## #????????? | | ????????# ??????????# ## #????????? | | ????????# ??????????# ## #????????? | | ????????# #?????????# ## #????????? | | ????????# #?????????# ## #????????? | | ????????# #?????????# ## #????????? | | ????????+ #?????????# ## #????????? | | ????????# ###########@## #????????? | | ????????# # # #????????? | | ????????# # ##############????????? | | ????????# # #?????????????????????? | | ????????# # s #?????????????????????? | | ????????# # % #?????????????????????? | | ######### #ss #?????????????????????? | | /s #?????????????????????? | | ?????#### #s #?????????????????????? | | ????????# # #?????????????????????? | | ????????### # #?????????????????????? | | ########### # #?????????????????????? | | %+% # #?????????????????????? | | ##################?????????????????????? | | " """""" #??????????????????????????????????????? | | "" """""" #??????????????????????????????????????? | | "" """""" #??????????????????????????????????????? | | "" """""" #??????????????????????????????????????? | | #??????????????????????????????????????? | | ########/#####???????????????????????????????????? | | """" #???????????????????????????????????? | | " F" #???????????????????????????????????? | | "^"" + ?????????????????????????????? | | %""" # " ???????????????????????????? | | = """" #?? " ???????????????????????????? | +----------------------------------------------------+ Best States ------------- Heat Dissipation 34 Energy Generation 18 Energy Capacity 265 Matter Stores 500 Matter Capacity 500 Sight Range 16 Robot Scan Range 13 Terrain Scan Range 16 Terrain Scan Density 135 ECM Strength 2 Armor Coverage 150 Core Shielding 20 Power Shielding 33 Propulsion Shielding 33 Phase Shifting 5 Evasion (%) 45 Targeting Accuracy 8 Target Analysis 5 Recoil Reduction 2 Energy Filtering 30 Item Schematics ----------------- Arc Projector | -8/Materials | Scanalyzed Phase Shifter | -8/Materials | Scanalyzed Robot Schematics ------------------ None Fabricated ------------ Nothing Alien Tech Used ----------------- None Achievements -------------- None Challenges ------------ None Game ------ Seed StructuralBurstWheel Manual? 0 Play Time 01:03:42 Cumulative 33.5 hours Start 2021.10.21 @ 18:00:39 End 2021.10.22 @ 18:13:37 Sessions 3 Manual Loads 0 Difficulty Rogue Special Mode None Game No. 37 Rogue 37 Adventurer 0 Explorer 0 Win Type - Total 0 Types 0/0/0/0/0/0/0/0/0 Lore% 23 Gallery% 31 Achievement% 23 Wizard Run 0 Options --------- ASCII 0 Keyboard 0 Movement Mouse Keybinds 0 Fullscreen 1 Font 18/SmallcapsGlow Map View 76x50 Tactical HUD 1 Map Filters NONE Filters NONE Steam 1 RUN: 1c674d5e-098a-47be-8e09-5cdb0651b32e